[Event "*** Titled Tuesday Blitz"]
[Site "Chess.com"]
[Date "2020.11.03"]
[Round "5"]
[White "AndrewMaco"]
[Black "Zhigalko_Sergei"]
[Result "0-1"]
[WhiteElo "2661"]
[BlackElo "2907"]
[TimeControl "180+1"]
[EndTime "11:00:16 PST"]
[Termination "Zhigalko_Sergei won by resignation"]

1. e4 {[%clk 0:03:00.9]} 1... c5 {[%clk 0:02:59.7]} 2. Nf3 {[%clk 0:02:55]} 2...
Nc6 {[%clk 0:02:59.1]} 3. Bb5 {[%clk 0:02:54]} 3... Nf6 {[%clk 0:02:57.7]} 4.
Bxc6 {[%clk 0:02:51.5]} 4... dxc6 {[%clk 0:02:57.8]} 5. d3 {[%clk 0:02:51]} 5...
Bg4 {[%clk 0:02:57.5]} 6. Nbd2 {[%clk 0:02:49.2]} 6... Qc7 {[%clk 0:02:57.2]} 7.
h3 {[%clk 0:02:48.2]} 7... Bh5 {[%clk 0:02:57.6]} 8. Nf1 {[%clk 0:02:38.6]} 8...
e6 {[%clk 0:02:56]} 9. Ng3 {[%clk 0:02:38.3]} 9... Bg6 {[%clk 0:02:55.7]} 10. e5
{[%clk 0:02:21.2]} 10... Nd5 {[%clk 0:02:55.1]} 11. Qe2 {[%clk 0:02:15.4]} 11...
c4 {[%clk 0:02:38.1]} 12. dxc4 {[%clk 0:01:52.8]} 12... Bb4+ {[%clk 0:02:38.1]}
13. Kf1 {[%clk 0:01:35.1]} 13... Nb6 {[%clk 0:02:26.2]} 14. Kg1 {[%clk
0:01:27.8]} 14... Nd7 {[%clk 0:02:15.4]} 15. Kh2 {[%clk 0:01:26.1]} 15... h5
{[%clk 0:02:03.5]} 16. Bg5 {[%clk 0:01:19.4]} 16... a5 {[%clk 0:01:33.6]} 17. c3
{[%clk 0:01:19.2]} 17... Bc5 {[%clk 0:01:33.8]} 18. Rhe1 {[%clk 0:01:18]} 18...
Qb6 {[%clk 0:01:32.2]} 19. Kg1 {[%clk 0:01:07.8]} 19... a4 {[%clk 0:01:23.6]}
20. Rad1 {[%clk 0:01:07.3]} 20... Qc7 {[%clk 0:01:11.8]} 21. Rd2 {[%clk
0:01:01.9]} 21... O-O {[%clk 0:00:53.7]} 22. Red1 {[%clk 0:01:01.5]} 22... Nb6
{[%clk 0:00:51.6]} 23. b4 {[%clk 0:01:01.1]} 23... Be7 {[%clk 0:00:45.7]} 24.
Bxe7 {[%clk 0:00:50]} 24... Qxe7 {[%clk 0:00:44.9]} 25. Rd6 {[%clk 0:00:47.6]}
25... a3 {[%clk 0:00:22]} 26. c5 {[%clk 0:00:44.7]} 26... Nd5 {[%clk 0:00:21.7]}
27. Qd2 {[%clk 0:00:44.7]} 27... h4 {[%clk 0:00:20.9]} 28. Nf1 {[%clk
0:00:38.4]} 28... Ra4 {[%clk 0:00:15.7]} 29. Ne3 {[%clk 0:00:30.8]} 29... Bh5
{[%clk 0:00:16]} 30. Ng4 {[%clk 0:00:26]} 30... Bxg4 {[%clk 0:00:12.5]} 31. hxg4
{[%clk 0:00:26.9]} 31... f6 {[%clk 0:00:13]} 32. exf6 {[%clk 0:00:24.5]} 32...
Qxf6 {[%clk 0:00:12.9]} 33. Qg5 {[%clk 0:00:17]} 33... Nxc3 {[%clk 0:00:09.8]}
34. Qxf6 {[%clk 0:00:17]} 34... gxf6 {[%clk 0:00:10.2]} 35. Ra1 {[%clk
0:00:15.3]} 35... Rxb4 {[%clk 0:00:07]} 36. Rxe6 {[%clk 0:00:15.8]} 36... Rxg4
{[%clk 0:00:06.3]} 37. Re3 {[%clk 0:00:16.1]} 37... Nb5 {[%clk 0:00:06.7]} 38.
Rd1 {[%clk 0:00:14.5]} 38... Kg7 {[%clk 0:00:05.8]} 39. Kh2 {[%clk 0:00:14.1]}
39... Rf7 {[%clk 0:00:05.8]} 40. Kh3 {[%clk 0:00:14.3]} 40... Rf4 {[%clk
0:00:05.3]} 41. Nxh4 {[%clk 0:00:14.1]} 41... Rxf2 {[%clk 0:00:05.7]} 42. Rg3+
{[%clk 0:00:13.3]} 42... Kh7 {[%clk 0:00:04.6]} 43. Rd8 {[%clk 0:00:12.5]} 43...
Rxa2 {[%clk 0:00:03.3]} 44. Nf5 {[%clk 0:00:13]} 44... Rb2 {[%clk 0:00:02.4]}
45. Kh2 {[%clk 0:00:10.2]} 45... Rc2 {[%clk 0:00:02.4]} 46. Rh3+ {[%clk
0:00:04.5]} 46... Kg6 {[%clk 0:00:03.3]} 47. Nh4+ {[%clk 0:00:04.3]} 47... Kg5
{[%clk 0:00:01.3]} 48. Rg8+ {[%clk 0:00:03]} 48... Kf4 {[%clk 0:00:02.2]} 49.
Rf3+ {[%clk 0:00:02.8]} 49... Ke4 {[%clk 0:00:03.1]} 50. Rg4+ {[%clk 0:00:02.7]}
50... Kd5 {[%clk 0:00:03.3]} 51. Nf5 {[%clk 0:00:03.2]} 51... Kxc5 {[%clk
0:00:03.6]} 52. Ra4 {[%clk 0:00:03.5]} 52... Kb6 {[%clk 0:00:03.2]} 53. Ne3
{[%clk 0:00:04.4]} 53... Rh7+ {[%clk 0:00:03.5]} 54. Kg3 {[%clk 0:00:04.7]}
54... Rc3 {[%clk 0:00:04.4]} 55. Nc4+ {[%clk 0:00:04.6]} 55... Kc5 {[%clk
0:00:04.8]} 56. Rxc3 {[%clk 0:00:05.1]} 56... Nxc3 {[%clk 0:00:05.7]} 57. Rxa3
{[%clk 0:00:05.1]} 57... Kxc4 {[%clk 0:00:06.2]} 58. Kf3 {[%clk 0:00:06]} 58...
Nd5 {[%clk 0:00:06.5]} 59. Ra8 {[%clk 0:00:06.1]} 59... b5 {[%clk 0:00:06.9]}
60. Re8 {[%clk 0:00:07]} 60... b4 {[%clk 0:00:06.8]} 61. Re6 {[%clk 0:00:07.4]}
61... c5 {[%clk 0:00:06.6]} 62. Ke4 {[%clk 0:00:06.9]} 62... Nc3+ {[%clk
0:00:06.7]} 63. Kf5 {[%clk 0:00:07.7]} 63... b3 {[%clk 0:00:07.6]} 64. Kxf6
{[%clk 0:00:08.3]} 64... b2 {[%clk 0:00:07.7]} 65. g4 {[%clk 0:00:09.2]} 65...
b1=Q {[%clk 0:00:08.1]} 66. g5 {[%clk 0:00:10.1]} 66... Rh8 {[%clk 0:00:07.8]}
67. g6 {[%clk 0:00:07]} 67... Nd5+ {[%clk 0:00:08.3]} 68. Kg7 {[%clk 0:00:07.8]}
68... Qb2+ {[%clk 0:00:08.2]} 69. Kf7 {[%clk 0:00:07.6]} 69... Qb7+ {[%clk
0:00:08.9]} 0-1

[Event "*** Titled Tuesday Blitz"]
[Site "Chess.com"]
[Date "2020.11.03"]
[Round "5"]
[White "Mr_Sinigami"]
[Black "Nikolakis2014"]
[Result "1-0"]
[WhiteElo "2513"]
[BlackElo "2732"]
[TimeControl "180+1"]
[EndTime "11:00:16 PST"]
[Termination "Mr_Sinigami won by resignation"]

1. d4 {[%clk 0:03:00.9]} 1... Nf6 {[%clk 0:02:58.8]} 2. Nf3 {[%clk 0:03:01.1]}
2... g6 {[%clk 0:02:58.7]} 3. Bf4 {[%clk 0:03:01.6]} 3... Bg7 {[%clk 0:02:58.5]}
4. e3 {[%clk 0:03:01.4]} 4... O-O {[%clk 0:02:57.8]} 5. h3 {[%clk 0:03:01.9]}
5... d6 {[%clk 0:02:57.9]} 6. Be2 {[%clk 0:03:01.5]} 6... Nbd7 {[%clk
0:02:54.2]} 7. O-O {[%clk 0:02:59.8]} 7... b6 {[%clk 0:02:53.5]} 8. a4 {[%clk
0:02:55.1]} 8... a5 {[%clk 0:02:42.9]} 9. Na3 {[%clk 0:02:52.1]} 9... Bb7 {[%clk
0:02:42.7]} 10. c3 {[%clk 0:02:49.9]} 10... Re8 {[%clk 0:02:42.5]} 11. Nd2
{[%clk 0:02:47.2]} 11... e5 {[%clk 0:02:39.6]} 12. Bh2 {[%clk 0:02:46.9]} 12...
exd4 {[%clk 0:02:32.6]} 13. cxd4 {[%clk 0:02:33.2]} 13... Nd5 {[%clk 0:02:31.6]}
14. Bf3 {[%clk 0:02:28.2]} 14... Qb8 {[%clk 0:02:26]} 15. Nb5 {[%clk 0:02:24.4]}
15... N7f6 {[%clk 0:02:13]} 16. Rc1 {[%clk 0:02:21.7]} 16... Re7 {[%clk
0:02:09.3]} 17. Nc4 {[%clk 0:02:11.1]} 17... Nb4 {[%clk 0:02:05.4]} 18. Ncxd6
{[%clk 0:02:03]} 18... cxd6 {[%clk 0:02:04.7]} 19. Bxd6 {[%clk 0:02:01.7]} 19...
Qd8 {[%clk 0:01:58.9]} 20. Bxe7 {[%clk 0:01:54.7]} 20... Qxe7 {[%clk 0:01:58]}
21. Rc7 {[%clk 0:01:43.5]} 21... Bxf3 {[%clk 0:01:57.1]} 22. Qxf3 {[%clk
0:01:42.9]} 22... Qe4 {[%clk 0:01:57.2]} 23. Rfc1 {[%clk 0:01:31.6]} 23... Rf8
{[%clk 0:01:36.8]} 24. Rc8 {[%clk 0:01:18.1]} 24... Nd3 {[%clk 0:01:35]} 25.
Rxf8+ {[%clk 0:01:07.9]} 25... Bxf8 {[%clk 0:01:33.9]} 26. Rc6 {[%clk
0:01:03.3]} 26... Qxf3 {[%clk 0:01:22.3]} 27. gxf3 {[%clk 0:01:04.2]} 27... Nd5
{[%clk 0:01:22.4]} 28. b3 {[%clk 0:00:52.9]} 28... Ne1 {[%clk 0:01:15.7]} 29. e4
{[%clk 0:00:48]} 29... Nf4 {[%clk 0:01:07.4]} 30. Rxb6 {[%clk 0:00:44.9]} 30...
Nxf3+ {[%clk 0:01:07.2]} 31. Kh1 {[%clk 0:00:41.5]} 31... Nd2 {[%clk 0:01:03.9]}
32. d5 {[%clk 0:00:27.3]} 32... Nxe4 {[%clk 0:00:28.1]} 33. d6 {[%clk
0:00:27.2]} 33... Nc5 {[%clk 0:00:28.2]} 34. Rc6 {[%clk 0:00:22.1]} 34... Nfe6
{[%clk 0:00:28.2]} 35. Nc7 {[%clk 0:00:16.6]} 35... Nd4 {[%clk 0:00:19.7]} 36.
Rxc5 {[%clk 0:00:15]} 36... Bxd6 {[%clk 0:00:20.3]} 37. Rd5 {[%clk 0:00:14.2]}
37... Nf5 {[%clk 0:00:20.9]} 38. Nb5 {[%clk 0:00:11.8]} 38... Bb4 {[%clk
0:00:20.8]} 39. Nd4 {[%clk 0:00:11.5]} 39... Nxd4 {[%clk 0:00:20.2]} 40. Rxd4
{[%clk 0:00:11.5]} 40... Kf8 {[%clk 0:00:20.8]} 41. Rd5 {[%clk 0:00:11]} 41...
Ke7 {[%clk 0:00:20.8]} 42. Kg2 {[%clk 0:00:11.4]} 42... Ke6 {[%clk 0:00:21.1]}
43. Rb5 {[%clk 0:00:11.4]} 43... f5 {[%clk 0:00:21.3]} 44. Kf3 {[%clk 0:00:08]}
44... g5 {[%clk 0:00:21.6]} 45. Ke2 {[%clk 0:00:07.8]} 45... h5 {[%clk 0:00:21]}
46. f3 {[%clk 0:00:08.1]} 46... Kf6 {[%clk 0:00:20.4]} 47. Kd3 {[%clk
0:00:07.9]} 47... Ke6 {[%clk 0:00:20.5]} 48. Kd4 {[%clk 0:00:07.5]} 48... Be1
{[%clk 0:00:19.8]} 49. Ke3 {[%clk 0:00:05.4]} 49... Kf6 {[%clk 0:00:18.8]} 50.
Kd4 {[%clk 0:00:04.9]} 50... h4 {[%clk 0:00:14.8]} 51. Rb6+ {[%clk 0:00:04.3]}
51... Kg7 {[%clk 0:00:14.3]} 52. Ke5 {[%clk 0:00:04.5]} 52... f4 {[%clk
0:00:13.2]} 53. Kf5 {[%clk 0:00:04.3]} 53... Kf7 {[%clk 0:00:13.5]} 54. Kxg5
{[%clk 0:00:04.4]} 54... Ke7 {[%clk 0:00:12.5]} 55. Kxf4 {[%clk 0:00:04]} 55...
Kd7 {[%clk 0:00:12.8]} 56. Rb5 {[%clk 0:00:04]} 56... Kc7 {[%clk 0:00:13.2]} 57.
Kg5 {[%clk 0:00:04.2]} 57... Kc6 {[%clk 0:00:13.8]} 58. f4 {[%clk 0:00:04.4]}
58... Bd2 {[%clk 0:00:13.1]} 59. Kg4 {[%clk 0:00:04.5]} 59... Kd6 {[%clk
0:00:11.8]} 60. f5 {[%clk 0:00:04.6]} 60... Ke7 {[%clk 0:00:11.8]} 61. Kxh4
{[%clk 0:00:04.7]} 61... Kf6 {[%clk 0:00:12.2]} 62. Kg4 {[%clk 0:00:05]} 62...
Be3 {[%clk 0:00:11.9]} 63. h4 {[%clk 0:00:05.2]} 63... Kg7 {[%clk 0:00:11.9]}
64. h5 {[%clk 0:00:05.2]} 64... Kf6 {[%clk 0:00:12.5]} 65. Rd5 {[%clk
0:00:04.8]} 65... Bc1 {[%clk 0:00:11.5]} 66. Rxa5 {[%clk 0:00:04.6]} 66... Kf7
{[%clk 0:00:11.5]} 67. Rb5 {[%clk 0:00:04.7]} 67... Kf6 {[%clk 0:00:11.9]} 68.
a5 {[%clk 0:00:05]} 68... Be3 {[%clk 0:00:12.7]} 69. a6 {[%clk 0:00:05.1]} 1-0

[Event "*** Titled Tuesday Blitz"]
[Site "Chess.com"]
[Date "2020.11.03"]
[Round "5"]
[White "Duhless"]
[Black "joppie2"]
[Result "1/2-1/2"]
[WhiteElo "2998"]
[BlackElo "2871"]
[TimeControl "180+1"]
[EndTime "11:00:21 PST"]
[Termination "Game drawn - insufficient material"]

1. d4 {[%clk 0:03:00.9]} 1... Nf6 {[%clk 0:02:52.3]} 2. Nf3 {[%clk 0:03:00.4]}
2... g6 {[%clk 0:02:51.6]} 3. Bg5 {[%clk 0:02:59.5]} 3... Bg7 {[%clk 0:02:51]}
4. Nbd2 {[%clk 0:03:00]} 4... d5 {[%clk 0:02:51.3]} 5. e3 {[%clk 0:02:59.8]}
5... O-O {[%clk 0:02:51.5]} 6. Be2 {[%clk 0:03:00.3]} 6... c5 {[%clk 0:02:50.6]}
7. c3 {[%clk 0:03:00.2]} 7... b6 {[%clk 0:02:50.2]} 8. O-O {[%clk 0:02:59.8]}
8... Bb7 {[%clk 0:02:50.8]} 9. a4 {[%clk 0:02:56.9]} 9... Nc6 {[%clk 0:02:50.8]}
10. h3 {[%clk 0:02:55.7]} 10... Re8 {[%clk 0:02:48.4]} 11. Bf4 {[%clk 0:02:54]}
11... Nd7 {[%clk 0:02:46.8]} 12. Bh2 {[%clk 0:02:51.1]} 12... e5 {[%clk
0:02:46.1]} 13. dxe5 {[%clk 0:02:50.3]} 13... Ndxe5 {[%clk 0:02:47]} 14. Nxe5
{[%clk 0:02:49.3]} 14... Nxe5 {[%clk 0:02:38.3]} 15. Nf3 {[%clk 0:02:49.2]}
15... Nc4 {[%clk 0:02:30.9]} 16. Qc2 {[%clk 0:02:47.4]} 16... Qe7 {[%clk
0:02:31.1]} 17. Rfe1 {[%clk 0:02:37.8]} 17... Rad8 {[%clk 0:02:25.6]} 18. Rad1
{[%clk 0:02:36.8]} 18... h6 {[%clk 0:02:22]} 19. Bf1 {[%clk 0:02:36.2]} 19...
Qe6 {[%clk 0:02:16.5]} 20. Bf4 {[%clk 0:02:32.3]} 20... Bc6 {[%clk 0:02:15.9]}
21. Bg3 {[%clk 0:02:17.6]} 21... Nd6 {[%clk 0:02:15.3]} 22. Bxd6 {[%clk
0:02:14.7]} 22... Rxd6 {[%clk 0:02:16.2]} 23. Bb5 {[%clk 0:02:14.5]} 23... Bxb5
{[%clk 0:02:13]} 24. axb5 {[%clk 0:02:14.3]} 24... Qd7 {[%clk 0:02:13.2]} 25.
Qb3 {[%clk 0:02:09.1]} 25... Bf6 {[%clk 0:02:09.2]} 26. Re2 {[%clk 0:02:07.8]}
26... Rc8 {[%clk 0:02:00.8]} 27. e4 {[%clk 0:01:52.5]} 27... dxe4 {[%clk
0:01:53.9]} 28. Rxd6 {[%clk 0:01:51.7]} 28... Qxd6 {[%clk 0:01:54.8]} 29. Rxe4
{[%clk 0:01:51.9]} 29... Kg7 {[%clk 0:01:55.3]} 30. Qc4 {[%clk 0:01:48.7]} 30...
Rd8 {[%clk 0:01:53.4]} 31. g3 {[%clk 0:01:44.9]} 31... Qd5 {[%clk 0:01:50.2]}
32. Kg2 {[%clk 0:01:40.3]} 32... Qxc4 {[%clk 0:01:45.8]} 33. Rxc4 {[%clk
0:01:41.2]} 33... Rd1 {[%clk 0:01:42.9]} 34. Ra4 {[%clk 0:01:40.5]} 34... Rb1
{[%clk 0:01:42.1]} 35. Ra2 {[%clk 0:01:39.7]} 35... Rc1 {[%clk 0:01:16.4]} 36.
Nd2 {[%clk 0:01:02.6]} 36... Rc2 {[%clk 0:01:14.6]} 37. Ne4 {[%clk 0:01:02.7]}
37... Be5 {[%clk 0:01:06.5]} 38. Rxa7 {[%clk 0:01:02.5]} 38... Rxb2 {[%clk
0:01:05.1]} 39. Re7 {[%clk 0:01:02.9]} 39... Bf6 {[%clk 0:00:58.5]} 40. Rb7
{[%clk 0:01:01.3]} 40... Re2 {[%clk 0:00:26]} 41. Nxf6 {[%clk 0:00:44.7]} 41...
Kxf6 {[%clk 0:00:26.9]} 42. Rxb6+ {[%clk 0:00:45]} 42... Ke5 {[%clk 0:00:27.5]}
43. Rb7 {[%clk 0:00:44.6]} 43... Rb2 {[%clk 0:00:21.7]} 44. Rxf7 {[%clk
0:00:24.4]} 44... Rxb5 {[%clk 0:00:21.3]} 45. h4 {[%clk 0:00:24.5]} 45... Rb3
{[%clk 0:00:20.4]} 46. Rf3 {[%clk 0:00:21.8]} 46... g5 {[%clk 0:00:20.4]} 47.
hxg5 {[%clk 0:00:21]} 47... hxg5 {[%clk 0:00:21.3]} 48. Kh3 {[%clk 0:00:21.2]}
48... Ke4 {[%clk 0:00:10.8]} 49. Kg4 {[%clk 0:00:19.7]} 49... Rb2 {[%clk
0:00:08.8]} 50. Re3+ {[%clk 0:00:17.5]} 50... Kd5 {[%clk 0:00:09.4]} 51. f3
{[%clk 0:00:17.5]} 51... Rg2 {[%clk 0:00:09.8]} 52. Re4 {[%clk 0:00:15.9]} 52...
Rc2 {[%clk 0:00:10.4]} 53. Re3 {[%clk 0:00:11]} 53... Rg2 {[%clk 0:00:10.3]} 54.
Kxg5 {[%clk 0:00:03.9]} 54... Rxg3+ {[%clk 0:00:10.5]} 55. Kh4 {[%clk
0:00:04.5]} 55... Rg8 {[%clk 0:00:09.8]} 56. f4 {[%clk 0:00:04.5]} 56... Rh8+
{[%clk 0:00:09.6]} 57. Kg5 {[%clk 0:00:04.5]} 57... Rg8+ {[%clk 0:00:10.3]} 58.
Kh5 {[%clk 0:00:04.4]} 58... Rf8 {[%clk 0:00:07.1]} 59. Kg4 {[%clk 0:00:04.3]}
59... Rg8+ {[%clk 0:00:07.4]} 60. Kf3 {[%clk 0:00:04.6]} 60... Rf8 {[%clk
0:00:08]} 61. Re5+ {[%clk 0:00:04]} 61... Kc4 {[%clk 0:00:08.1]} 62. Ke4 {[%clk
0:00:04.3]} 62... Rc8 {[%clk 0:00:06]} 63. f5 {[%clk 0:00:04.5]} 63... Kxc3
{[%clk 0:00:06.5]} 64. f6 {[%clk 0:00:04.9]} 64... c4 {[%clk 0:00:07.1]} 65. Kd5
{[%clk 0:00:03.6]} 65... Kd2 {[%clk 0:00:04.4]} 66. f7 {[%clk 0:00:03.3]} 66...
c3 {[%clk 0:00:04.6]} 67. Re8 {[%clk 0:00:02.9]} 67... Rxe8 {[%clk 0:00:04.8]}
68. fxe8=Q {[%clk 0:00:03]} 68... c2 {[%clk 0:00:05.7]} 69. Qa4 {[%clk
0:00:01.7]} 69... c1=Q {[%clk 0:00:05.8]} 70. Qf4+ {[%clk 0:00:02.3]} 70... Kc2
{[%clk 0:00:05.7]} 71. Qxc1+ {[%clk 0:00:02.6]} 71... Kxc1 {[%clk 0:00:06.6]}
1/2-1/2

[Event "*** Titled Tuesday Blitz"]
[Site "Chess.com"]
[Date "2020.11.03"]
[Round "5"]
[White "kflorian98"]
[Black "Balla_Tamas"]
[Result "1/2-1/2"]
[WhiteElo "2755"]
[BlackElo "2507"]
[TimeControl "180+1"]
[EndTime "11:00:22 PST"]
[Termination "Game drawn - insufficient material"]

1. e4 {[%clk 0:03:00.9]} 1... d5 {[%clk 0:02:59.4]} 2. exd5 {[%clk 0:02:59.9]}
2... Qxd5 {[%clk 0:03:00.3]} 3. Nc3 {[%clk 0:03:00.1]} 3... Qd6 {[%clk
0:03:00.3]} 4. d4 {[%clk 0:02:59.8]} 4... Nf6 {[%clk 0:02:58.2]} 5. Nf3 {[%clk
0:03:00.2]} 5... c6 {[%clk 0:02:58.3]} 6. Ne5 {[%clk 0:02:58.1]} 6... Nbd7
{[%clk 0:02:57.8]} 7. Nc4 {[%clk 0:02:58.2]} 7... Qc7 {[%clk 0:02:57.2]} 8. Qf3
{[%clk 0:02:57.9]} 8... Nb6 {[%clk 0:02:56.6]} 9. Bf4 {[%clk 0:02:57.8]} 9...
Qd7 {[%clk 0:02:54.9]} 10. Nxb6 {[%clk 0:02:58]} 10... axb6 {[%clk 0:02:53.5]}
11. O-O-O {[%clk 0:02:56.2]} 11... Qg4 {[%clk 0:02:52.2]} 12. Be2 {[%clk
0:02:45.5]} 12... Qxf3 {[%clk 0:02:48.4]} 13. Bxf3 {[%clk 0:02:46.4]} 13... Bg4
{[%clk 0:02:40.8]} 14. d5 {[%clk 0:02:34.1]} 14... Bxf3 {[%clk 0:02:39.9]} 15.
gxf3 {[%clk 0:02:35]} 15... Nxd5 {[%clk 0:02:35]} 16. Nxd5 {[%clk 0:02:29.3]}
16... cxd5 {[%clk 0:02:35]} 17. Rxd5 {[%clk 0:02:29.8]} 17... Rxa2 {[%clk
0:02:33.8]} 18. Kb1 {[%clk 0:02:26]} 18... Ra5 {[%clk 0:02:30.9]} 19. Rhd1
{[%clk 0:02:17.2]} 19... Rxd5 {[%clk 0:02:27.7]} 20. Rxd5 {[%clk 0:02:18.1]}
20... e6 {[%clk 0:02:28.1]} 21. Rb5 {[%clk 0:02:18.5]} 21... Bc5 {[%clk
0:02:26.9]} 22. Be3 {[%clk 0:02:18.8]} 22... Bxe3 {[%clk 0:02:22.3]} 23. fxe3
{[%clk 0:02:19.7]} 23... Kd7 {[%clk 0:02:22.7]} 24. Rxb6 {[%clk 0:02:19.5]}
24... Kc7 {[%clk 0:02:22.9]} 25. Rb4 {[%clk 0:02:19.9]} 25... Rd8 {[%clk
0:02:21.5]} 26. Kc1 {[%clk 0:02:19.8]} 26... Rd5 {[%clk 0:02:20.6]} 27. Rc4+
{[%clk 0:02:17.1]} 27... Kb6 {[%clk 0:02:18.5]} 28. Rf4 {[%clk 0:02:09.9]} 28...
f6 {[%clk 0:02:15.8]} 29. Re4 {[%clk 0:02:09.4]} 29... e5 {[%clk 0:02:08.8]} 30.
Rh4 {[%clk 0:02:03.4]} 30... h6 {[%clk 0:02:07.4]} 31. b3 {[%clk 0:02:02.4]}
31... Kc6 {[%clk 0:02:05]} 32. Rc4+ {[%clk 0:01:58.2]} 32... Kd7 {[%clk
0:01:59.1]} 33. Rb4 {[%clk 0:01:55.7]} 33... Kc6 {[%clk 0:01:58.6]} 34. Ra4
{[%clk 0:01:56]} 34... Kc7 {[%clk 0:01:47.3]} 35. h4 {[%clk 0:01:40.3]} 35... f5
{[%clk 0:01:38.6]} 36. e4 {[%clk 0:01:35.7]} 36... fxe4 {[%clk 0:01:37.2]} 37.
Rxe4 {[%clk 0:01:36.6]} 37... Kd6 {[%clk 0:01:36.5]} 38. Rg4 {[%clk 0:01:31.3]}
38... g5 {[%clk 0:01:31.7]} 39. hxg5 {[%clk 0:01:30.5]} 39... hxg5 {[%clk
0:01:31.7]} 40. Rxg5 {[%clk 0:01:31.2]} 40... Rd4 {[%clk 0:01:28.5]} 41. Rg6+
{[%clk 0:01:27.2]} 41... Kc5 {[%clk 0:01:28.2]} 42. Rg7 {[%clk 0:01:17.9]} 42...
b5 {[%clk 0:01:25.6]} 43. Rf7 {[%clk 0:01:15.1]} 43... b4 {[%clk 0:01:23.2]} 44.
Kb2 {[%clk 0:01:12.5]} 44... Rd2 {[%clk 0:01:20.8]} 45. Rc7+ {[%clk 0:01:07.8]}
45... Kb5 {[%clk 0:01:15.9]} 46. Rc4 {[%clk 0:01:02.4]} 46... Rf2 {[%clk
0:01:12.7]} 47. Re4 {[%clk 0:01:01.3]} 47... Rxf3 {[%clk 0:01:12.6]} 48. Rxe5+
{[%clk 0:01:01.6]} 48... Kb6 {[%clk 0:01:13.1]} 49. Kc1 {[%clk 0:00:59.9]} 49...
Rf2 {[%clk 0:01:12.9]} 50. Kd1 {[%clk 0:00:59.8]} 50... Rh2 {[%clk 0:01:12.1]}
51. Re2 {[%clk 0:00:59.9]} 51... Rh3 {[%clk 0:01:09]} 52. Kd2 {[%clk 0:00:59.6]}
52... Kc5 {[%clk 0:01:09.1]} 53. Re3 {[%clk 0:00:59]} 53... Rh2+ {[%clk
0:01:09]} 54. Kd3 {[%clk 0:00:59.1]} 54... Rh4 {[%clk 0:01:08.8]} 55. Re5+
{[%clk 0:00:57.7]} 55... Kb6 {[%clk 0:01:08.3]} 56. Re4 {[%clk 0:00:58]} 56...
Rh3+ {[%clk 0:01:07.3]} 57. Kd4 {[%clk 0:00:51.9]} 57... Rc3 {[%clk 0:01:03.7]}
58. Re2 {[%clk 0:00:52.1]} 58... Kb5 {[%clk 0:01:02.6]} 59. Rh2 {[%clk
0:00:48.9]} 59... Kb6 {[%clk 0:01:02.1]} 60. Kd5 {[%clk 0:00:48.6]} 60... Kb5
{[%clk 0:01:01.3]} 61. Kd6 {[%clk 0:00:48.3]} 61... Kb6 {[%clk 0:01:01.1]} 62.
Rg2 {[%clk 0:00:46]} 62... Kb5 {[%clk 0:01:00.9]} 63. Rg5+ {[%clk 0:00:40.3]}
63... Kb6 {[%clk 0:01:00.3]} 64. Rg2 {[%clk 0:00:39.1]} 64... Kb5 {[%clk
0:01:00.4]} 65. Kd5 {[%clk 0:00:39.7]} 65... Kb6 {[%clk 0:01:00]} 66. Rg4 {[%clk
0:00:38.9]} 66... Rxc2 {[%clk 0:00:57.4]} 67. Rxb4+ {[%clk 0:00:35.9]} 67... Ka5
{[%clk 0:00:57.1]} 68. Rb8 {[%clk 0:00:29.1]} 68... Ka6 {[%clk 0:00:55.6]} 69.
Kd4 {[%clk 0:00:27.1]} 69... Ka7 {[%clk 0:00:55.1]} 70. Rb4 {[%clk 0:00:25.9]}
70... Rc6 {[%clk 0:00:54.4]} 71. Rc4 {[%clk 0:00:25.3]} 71... Rh6 {[%clk
0:00:54.2]} 72. Kc5 {[%clk 0:00:24]} 72... Kb7 {[%clk 0:00:53.7]} 73. Rd4 {[%clk
0:00:22.6]} 73... Rh5+ {[%clk 0:00:53.1]} 74. Rd5 {[%clk 0:00:21.9]} 74... Rh6
{[%clk 0:00:53.3]} 75. b4 {[%clk 0:00:21.6]} 75... Rg6 {[%clk 0:00:52.7]} 76. b5
{[%clk 0:00:21.3]} 76... Rh6 {[%clk 0:00:52.8]} 77. Rd7+ {[%clk 0:00:21.2]}
77... Kb8 {[%clk 0:00:52.8]} 78. Kb4 {[%clk 0:00:19.6]} 78... Rg6 {[%clk
0:00:52.2]} 79. Ka5 {[%clk 0:00:19.4]} 79... Rf6 {[%clk 0:00:52.2]} 80. Rd5
{[%clk 0:00:19.2]} 80... Rg6 {[%clk 0:00:51.7]} 81. Rc5 {[%clk 0:00:19.7]} 81...
Kb7 {[%clk 0:00:50.1]} 82. Rh5 {[%clk 0:00:19.6]} 82... Rf6 {[%clk 0:00:49.7]}
83. Rg5 {[%clk 0:00:19.4]} 83... Rh6 {[%clk 0:00:49.1]} 84. b6 {[%clk 0:00:19]}
84... Rh1 {[%clk 0:00:47.8]} 85. Rg7+ {[%clk 0:00:19]} 85... Kb8 {[%clk
0:00:47.7]} 86. Kb5 {[%clk 0:00:19.2]} 86... Rb1+ {[%clk 0:00:46.9]} 87. Kc6
{[%clk 0:00:19.5]} 87... Rc1+ {[%clk 0:00:46.9]} 88. Kd6 {[%clk 0:00:19.8]}
88... Rd1+ {[%clk 0:00:46.8]} 89. Ke5 {[%clk 0:00:19.5]} 89... Re1+ {[%clk
0:00:46.8]} 90. Kd4 {[%clk 0:00:19.2]} 90... Rd1+ {[%clk 0:00:45.6]} 91. Kc3
{[%clk 0:00:19.1]} 91... Rb1 {[%clk 0:00:45.3]} 92. b7 {[%clk 0:00:19.3]} 92...
Rxb7 {[%clk 0:00:44.9]} 93. Rxb7+ {[%clk 0:00:20.2]} 93... Kxb7 {[%clk 0:00:45]}
1/2-1/2